bitfinex-derivatives/quotes_SOLF0:USTF0_20250318
["timestamp","ask_amount","ask_price","bid_price","bid_amount"]
[1742339565485,7.9908,125.17,125.14,47.41462366]
[1742339565678,2.1947,125.23,125.16,11.20252366]
[1742339565878,7.9892,125.19,125.18,11.20252366]
[1742339566591,7.9889,125.2,125.18,11.20252366]
[1742339566779,0.05381049,125.21,125.18,11.20252366]
[1742339567987,0.05381049,125.21,125.17,39.47665003]
[1742339568287,7.9895,125.19,125.17,39.47665003]
[1742339568785,0.05381049,125.21,125.17,47.46705003]
[1742339568982,7.9889,125.2,125.17,47.46705003]
[1742339569285,7.9889,125.2,125.17,39.47665003]
[1742339570194,0.05381049,125.21,125.18,11.20252366]
[1742339570393,0.05381049,125.21,125.2,11.20252366]
[1742339571981,7.9864,125.24,125.2,11.20252366]
[1742339572176,39.48252366,125.25,125.2,11.20252366]
[1742339572382,36.2657,125.25,125.22,7.9872]
[1742339573190,28.33579443,125.25,125.23,7.9864]
[1742339573582,28.33579443,125.25,125.22,11.25425764]
[1742339573781,36.32149443,125.25,125.22,19.24125764]
[1742339574593,7.9862,125.24,125.22,19.24125764]
[1742339575292,36.32149443,125.25,125.22,19.24125764]
[1742339575491,28.33579443,125.25,125.22,19.24125764]
[1742339575894,7.9863,125.24,125.22,19.24125764]
[1742339576789,36.32159443,125.25,125.23,7.9865]
[1742339576993,28.33579443,125.25,125.23,7.9865]
[1742339577390,0.05579443,125.25,125.23,7.9865]
[1742339577594,8.04129443,125.25,125.23,7.9865]
[1742339577988,0.05579443,125.25,125.22,11.25425764]
[1742339578793,0.05579443,125.25,125.23,7.9861]
[1742339578999,0.05579443,125.25,125.22,11.25425764]
[1742339579394,0.05579443,125.25,125.23,7.9867]
[1742339579590,0.05579443,125.25,125.22,11.25425764]
[1742339580092,0.05579443,125.25,125.23,7.9867]
[1742339580597,0.05579443,125.25,125.24,7.9861]
[1742339582499,0.05579443,125.25,125.24,19.18862366]
[1742339583089,7.9838,125.28,125.26,7.9847]
[1742339583490,7.9844,125.27,125.24,11.20252366]
[1742339584100,7.9844,125.27,125.25,7.9851]
[1742339584301,8.04386389,125.27,125.25,7.9851]
[1742339584495,0.05946389,125.27,125.25,7.9851]
[1742339585010,0.05946389,125.27,125.26,19.18732366]
[1742339586995,0.05946389,125.27,125.24,0.05599371]
[1742339587393,7.9852,125.26,125.24,0.05599371]
[1742339588702,7.9852,125.26,125.24,8.04179371]
[1742339589309,8.04396389,125.27,125.25,7.9854]
[1742339589495,0.05946389,125.27,125.24,39.47851737]
[1742339590193,0.05946389,125.27,125.26,11.20252366]
[1742339590699,0.05946389,125.27,125.26,19.18732366]
[1742339591597,28.26,125.31,125.29,7.9829]
[1742339592304,36.2419,125.31,125.29,7.9829]
[1742339592495,36.2419,125.31,125.29,8.03611977]
[1742339593503,28.26,125.31,125.3,7.9822]
[1742339593802,7.9812,125.32,125.3,7.9822]
[1742339594998,7.9805,125.33,125.31,7.9816]
[1742339595405,28.24,125.34,125.3,11.20252366]
[1742339595701,7.9814,125.32,125.3,19.18442366]
[1742339596496,7.9816,125.31,125.3,11.20252366]
[1742339598707,7.9813,125.32,125.3,11.20252366]
[1742339599101,28.24,125.34,125.3,11.20252366]
[1742339599502,7.9816,125.31,125.3,11.20252366]
[1742339600506,28.24,125.34,125.3,11.20252366]
[1742339600705,28.24,125.34,125.3,13.33492366]
[1742339601008,7.9796,125.35,125.32,19.18312366]
[1742339601506,7.9796,125.35,125.33,7.9802]
[1742339602102,7.9796,125.35,125.33,19.18272366]
[1742339602502,7.9797,125.34,125.33,11.20252366]
[1742339603608,7.9794,125.35,125.33,19.18262366]
[1742339604803,7.9761,125.4,125.34,39.40252366]
[1742339605106,39.40252366,125.42,125.37,11.20252366]
[1742339605308,11.20252366,125.41,125.36,11.26351493]
[1742339605495,11.20252366,125.41,125.36,19.24161493]
[1742339605695,28.28,125.4,125.36,19.24161493]
[1742339605899,28.28,125.4,125.36,11.26351493]
[1742339606101,11.20252366,125.39,125.36,0.06099127]
[1742339606505,7.9778,125.37,125.36,0.06099127]
[1742339606709,39.48252366,125.38,125.35,263.36]
[1742339606900,39.48252366,125.38,125.35,263.41254483]
[1742339607101,7.9778,125.37,125.35,263.41254483]
[1742339607403,39.48252366,125.38,125.35,263.41254483]
[1742339608401,7.9784,125.36,125.35,263.41254483]
[1742339609702,7.9781,125.37,125.35,263.41254483]
[1742339609898,7.9781,125.37,125.35,263.36]
[1742339610108,7.9781,125.37,125.35,263.41665195]
[1742339610504,7.9784,125.36,125.35,263.41665195]
[1742339611796,36.2584,125.36,125.35,0.05665195]
[1742339618615,28.28,125.36,125.35,0.05665195]
[1742339619410,36.2584,125.36,125.35,0.05665195]
[1742339620015,28.28,125.36,125.35,0.05665195]
[1742339620511,28.28,125.36,125.35,8.03565195]
[1742339620816,28.28,125.36,125.35,0.05665195]
[1742339621212,28.24,125.38,125.35,0.05665195]
[1742339621412,7.9784,125.36,125.35,0.05665195]
[1742339623623,7.978,125.37,125.35,11.25917561]
[1742339623815,39.44252366,125.41,125.37,7.9776]
[1742339624013,39.44252366,125.41,125.37,11.20252366]
[1742339624207,13.26472366,125.42,125.38,0.05314717]
[1742339624421,28.24,125.41,125.38,0.05314717]
[1742339624619,7.9763,125.4,125.38,0.05314717]
[1742339624820,28.24,125.41,125.39,11.20252366]
[1742339625320,7.9762,125.4,125.38,11.25567083]
[1742339625516,28.24,125.41,125.38,11.25567083]
[1742339625711,7.9765,125.39,125.38,0.05314717]
[1742339631819,36.1965,125.39,125.38,0.05314717]
[1742339632526,7.9765,125.39,125.38,0.05314717]
[1742339633222,7.9765,125.39,125.38,11.25567083]
[1742339633824,28.22,125.43,125.38,11.25567083]
[1742339634012,28.22,125.43,125.39,11.20252366]
[1742339634622,11.20252366,125.44,125.39,11.20252366]
[1742339635127,7.9759,125.4,125.39,11.20252366]
[1742339636126,28.22,125.43,125.38,0.05314717]
[1742339636127,7.9765,125.39,125.38,0.05314717]
[1742339639433,7.9761,125.4,125.38,0.05314717]
[1742339639923,36.1955,125.41,125.38,0.05314717]
[1742339641325,28.22,125.41,125.38,8.02994717]
[1742339641732,28.22,125.41,125.38,0.05314717]
[1742339642030,36.1953,125.41,125.38,0.05314717]
[1742339643330,36.1953,125.41,125.38,8.03004717]
[1742339643934,7.9753,125.41,125.38,8.03004717]
[1742339644231,36.1753,125.41,125.38,8.03004717]
[1742339645138,28.2,125.41,125.39,7.9764]
[1742339645327,11.20252366,125.44,125.39,11.20252366]
[1742339645528,28.2,125.43,125.41,11.20252366]
[1742339645822,28.2,125.45,125.41,19.17722366]
[1742339646027,13.19442366,125.46,125.41,19.17722366]
[1742339646436,7.9736,125.44,125.41,19.17722366]
[1742339647035,36.1736,125.44,125.41,19.17722366]
[1742339647335,36.1736,125.44,125.41,11.20252366]
[1742339647533,7.9741,125.43,125.41,11.20252366]
[1742339648036,39.40252366,125.44,125.4,0.05342039]
[1742339648923,7.9752,125.41,125.4,0.05342039]
[1742339649126,28.18,125.42,125.4,0.05342039]
[1742339649638,36.1549,125.42,125.4,0.05342039]
[1742339650139,36.155,125.42,125.4,0.05342039]
[1742339650334,28.18,125.42,125.4,8.02922039]
[1742339650538,28.18,125.42,125.4,0.05342039]
[1742339652139,7.9752,125.41,125.4,0.05342039]
[1742339652341,28.18,125.42,125.4,0.05342039]
[1742339652546,36.1551,125.42,125.4,8.02932039]
[1742339652741,7.9751,125.42,125.4,8.02932039]
[1742339653245,7.9751,125.42,125.41,11.20252366]
[1742339653740,7.9743,125.43,125.41,19.17772366]
[1742339654542,7.9743,125.43,125.41,11.20252366]
[1742339655246,7.9743,125.43,125.41,19.17772366]
[1742339655944,7.9743,125.43,125.41,11.20252366]
[1742339656545,7.9746,125.42,125.41,11.20252366]
[1742339664053,28.18,125.45,125.4,13.35804405]
[1742339664253,28.18,125.45,125.4,11.25594405]
[1742339664456,11.20252366,125.44,125.4,0.05342039]
[1742339664751,7.975,125.42,125.4,0.05342039]
[1742339667557,39.38252366,125.43,125.4,0.05342039]
[1742339667946,33.78126183,125.43,125.4,0.05342039]
[1742339669052,28.18,125.43,125.4,11.25594405]
[1742339669249,7.9752,125.41,125.4,11.25594405]
[1742339672555,7.9752,125.41,125.4,0.05342039]
[1742339680755,7.9749,125.42,125.4,11.25594405]
[1742339683758,28.18,125.43,125.4,11.25594405]
[1742339684159,39.38252366,125.43,125.4,0.05342039]
[1742339684861,7.9752,125.41,125.4,0.05342039]
[1742339693963,36.1552,125.41,125.4,0.05342039]
[1742339698673,28.18,125.41,125.4,0.05342039]
[1742339698877,28.18,125.43,125.4,11.25594405]
[1742339699175,7.9748,125.42,125.4,19.17792366]
[1742339699374,7.9748,125.42,125.4,11.26255887]
[1742339699770,7.9748,125.42,125.4,19.23815887]
[1742339700772,7.9743,125.43,125.4,19.23815887]
[1742339700976,28.18,125.44,125.4,19.23815887]
[1742339701373,7.9741,125.43,125.4,19.23815887]
[1742339701771,11.20252366,125.46,125.41,7.9751]
[1742339701966,11.20252366,125.46,125.4,11.26255887]
[1742339702175,46.49255796,125.48,125.4,11.26255887]
[1742339702176,28.18,125.47,125.44,7.973]
[1742339702372,7.9718,125.47,125.44,11.20252366]
[1742339702677,7.9718,125.47,125.45,11.20252366]
[1742339702875,72.61605796,125.48,125.44,19.236279]
[1742339703067,7.9715,125.47,125.44,19.236279]
[1742339703268,72.61605796,125.48,125.44,19.236279]
[1742339703673,7.9718,125.47,125.44,19.236279]
[1742339704477,7.9717,125.47,125.44,19.236479]
[1742339704680,44.43605796,125.48,125.44,11.263279]
[1742339705070,44.43605796,125.48,125.44,0.06075534]
[1742339705071,7.9727,125.45,125.44,0.06075534]
[1742339705969,72.61605796,125.48,125.44,11.263279]
[1742339706181,72.61605796,125.48,125.45,11.20252366]
[1742339706473,72.61605796,125.48,125.44,11.263279]
[1742339706676,7.9725,125.46,125.44,11.263279]
[1742339708176,7.9727,125.45,125.44,0.06075534]
[1742339710286,7.9724,125.46,125.44,0.06075534]
[1742339710682,28.18,125.47,125.44,0.06075534]
[1742339710884,7.9727,125.45,125.44,0.06075534]
[1742339711381,47.35522366,125.45,125.44,0.06075534]
[1742339711587,47.35522366,125.45,125.44,5.534e-05]
[1742339714087,47.35522366,125.45,125.39,263.08]
[1742339714088,7.9759,125.4,125.39,263.08]
[1742339716794,8.03350945,125.41,125.39,263.08]
[1742339717192,0.05800945,125.41,125.39,263.08]
[1742339717493,7.9759,125.4,125.39,263.08]
[1742339718694,8.03360945,125.41,125.39,274.28252366]
[1742339722091,0.05800945,125.41,125.39,274.28252366]
[1742339722287,0.05800945,125.41,125.4,11.20252366]
[1742339722889,0.05800945,125.41,125.4,19.17842366]
[1742339724699,0.05800945,125.41,125.4,11.20252366]
[1742339729511,8.03320945,125.41,125.39,276.44652366]
[1742339729804,0.05800945,125.41,125.39,276.44652366]
[1742339730008,0.05800945,125.41,125.39,263.08]
[1742339730410,7.9759,125.4,125.39,263.08]
[1742339731109,8.03350945,125.41,125.39,263.08]
[1742339731415,0.05800945,125.41,125.39,263.08]
[1742339731809,7.9759,125.4,125.39,263.08]
[1742339734811,7.9759,125.4,125.39,274.28252366]
[1742339735312,7.9759,125.4,125.39,11.20252366]
[1742339737519,7.9765,125.39,125.38,43.6370346]
[1742339738015,7.9762,125.4,125.38,43.6370346]
[1742339738218,0.05800945,125.41,125.4,5.60126183]
[1742339740221,8.03320945,125.41,125.4,5.60126183]
[1742339740919,57.62118122,125.51,125.4,47.36252366]
[1742339741126,28.18,125.5,125.45,11.20252366]
[1742339741621,28.18,125.5,125.43,291.3]
[1742339741622,28.18,125.5,125.47,11.20252366]
[1742339742021,83.87858162,125.51,125.47,11.26351777]
[1742339743420,28.24,125.5,125.47,11.26351777]
[1742339744518,31.92245061,125.52,125.47,11.26351777]
[1742339744720,1.66975061,125.52,125.49,11.20252366]
[1742339744928,1.66975061,125.52,125.49,19.17252366]
[1742339746231,1.66975061,125.52,125.48,11.20252366]
[1742339746626,1.66975061,125.52,125.49,7.9697]
[1742339746830,1.66975061,125.52,125.48,11.20252366]
[1742339747128,1.66975061,125.52,125.5,11.20252366]
[1742339747430,1.66975061,125.52,125.5,19.17162366]
[1742339747629,1.66975061,125.52,125.5,19.2321396]
[1742339747829,1.66975061,125.52,125.51,7.9689]
[1742339748031,1.66975061,125.52,125.5,11.2630396]
[1742339748524,1.66975061,125.52,125.5,19.2322396]
[1742339749022,1.66975061,125.52,125.5,11.2630396]
[1742339749329,1.66975061,125.52,125.5,0.06051594]
[1742339749730,1.66975061,125.52,125.5,8.02971594]
[1742339753928,1.66975061,125.52,125.51,19.17142366]
[1742339756233,28.71280505,125.56,125.53,7.9673]
[1742339756733,36.67860505,125.56,125.53,8.02641612]
[1742339757035,7.9648,125.58,125.53,28.29911612]
[1742339757335,7.9648,125.58,125.54,11.20252366]
[1742339757525,7.9648,125.58,125.55,11.20252366]
[1742339757726,7.9641,125.59,125.55,19.16852366]
[1742339757935,39.48252366,125.59,125.55,11.20252366]
[1742339758236,39.48252366,125.59,125.56,0.05747301]
[1742339758828,11.20252366,125.59,125.56,0.05747301]
[1742339759025,0.48439959,125.6,125.58,11.20252366]
[1742339759233,1.11680689,125.62,125.59,5.60126183]
[1742339759434,21.3418161,125.65,125.61,19.16462366]
[1742339759638,13.3817161,125.65,125.62,11.20252366]
[1742339760140,13.3817161,125.65,125.61,8.0228341]
[1742339760333,13.3817161,125.65,125.61,11.26345776]
[1742339761129,13.3817161,125.65,125.63,11.20252366]
[1742339761637,13.3817161,125.65,125.64,7.9606]
[1742339761842,13.3817161,125.65,125.64,19.16312366]
[1742339762039,2.27270161,125.65,125.64,19.16312366]
[1742339762726,2.27270161,125.65,125.64,11.20252366]
[1742339764541,2.27270161,125.65,125.63,262.86]
[1742339764940,2.27270161,125.65,125.63,274.06252366]
[1742339765537,2.27270161,125.65,125.63,262.86]
[1742339768443,2.27270161,125.65,125.63,274.06252366]
[1742339769143,2.27270161,125.65,125.64,11.20252366]
[1742339769737,2.27270161,125.65,125.63,274.06252366]
[1742339770242,10.23270161,125.65,125.63,274.06252366]
[1742339770448,2.27270161,125.65,125.63,274.06252366]
[1742339771335,7.9606,125.64,125.63,262.86]
[1742339771643,33.89270161,125.65,125.61,11.26345776]
[1742339772543,7.9616,125.63,125.61,11.26345776]
[1742339772745,33.89270161,125.65,125.62,11.20252366]
[1742339772949,2.27270161,125.65,125.64,11.20252366]
[1742339773249,10.23300161,125.65,125.64,11.20252366]
[1742339774444,7.9613,125.64,125.63,11.20252366]
[1742339774634,2.27270161,125.65,125.62,11.20252366]
[1742339774836,31.54,125.64,125.61,11.26345776]
[1742339775032,31.54,125.64,125.61,0.0609341]
[1742339776440,2.27270161,125.65,125.62,11.20252366]
[1742339776745,7.9608,125.64,125.62,11.20252366]
[1742339778534,2.27270161,125.65,125.62,11.20252366]
[1742339778944,2.27270161,125.65,125.61,0.0609341]
[1742339779848,7.9618,125.63,125.61,0.0609341]
[1742339780849,39.5818,125.63,125.61,0.0609341]
[1742339782347,31.62,125.63,125.61,0.0609341]
[1742339784147,39.5813,125.63,125.61,0.0609341]
[1742339784342,31.62,125.63,125.61,0.0609341]
[1742339784848,31.62,125.63,125.62,11.20252366]
[1742339785153,7.961,125.64,125.62,11.20252366]
[1742339785348,41.85300161,125.65,125.62,11.20252366]
[1742339785852,2.27270161,125.65,125.62,11.20252366]
[1742339787755,2.27270161,125.65,125.64,11.20252366]
[1742339788842,0.47960449,125.67,125.64,11.20252366]
[1742339789043,0.47960449,125.67,125.66,11.20252366]
[1742339789647,0.50770766,125.71,125.66,11.20252366]
[1742339789848,32.20770766,125.71,125.7,11.20252366]
[1742339790044,0.50770766,125.71,125.7,11.20252366]
[1742339791256,8.46390766,125.71,125.69,0.06008745]
[1742339791449,0.50770766,125.71,125.69,0.06008745]
[1742339792260,8.46450766,125.71,125.69,0.06008745]
[1742339793059,7.9568,125.7,125.69,0.06008745]
[1742339797359,0.50770766,125.71,125.69,0.06008745]
[1742339798255,8.46430766,125.71,125.69,0.06008745]
[1742339799258,0.50770766,125.71,125.69,0.06008745]
[1742339799761,40.10390766,125.71,125.69,0.06008745]
[1742339799949,32.14770766,125.71,125.69,0.06008745]
[1742339800354,40.10400766,125.71,125.69,0.06008745]
[1742339800548,32.14770766,125.71,125.69,0.06008745]
[1742339801156,32.14770766,125.71,125.69,8.01748745]
[1742339801363,0.50770766,125.71,125.69,8.01748745]
[1742339802166,0.50770766,125.71,125.69,0.06008745]
[1742339802768,7.9568,125.7,125.69,0.06008745]
[1742339805159,7.9588,125.67,125.64,262.68]
[1742339805359,39.5188,125.67,125.64,262.68]
[1742339806366,39.56924144,125.67,125.64,262.74128741]
[1742339806660,31.61044144,125.67,125.64,262.74128741]
[1742339807761,7.9595,125.66,125.64,262.74128741]
[1742339808160,31.61044144,125.67,125.64,0.06128741]
[1742339808365,7.96,125.65,125.64,0.06128741]
[1742339816987,7.96,125.65,125.64,8.741e-05]
[1742339819088,19.11204716,125.65,125.64,8.741e-05]
[1742339824692,50.17204716,125.65,125.64,8.741e-05]
[1742339830095,58.13204716,125.65,125.64,8.741e-05]
[1742339830394,7.9638,125.59,125.55,35.2017]
[1742339830589,30.94,125.59,125.56,11.15204716]
[1742339831399,31.00003508,125.59,125.58,11.15204716]
[1742339831597,0.06003508,125.59,125.58,11.15204716]
[1742339832689,0.06003508,125.59,125.56,11.21214163]
[1742339834102,11.15204716,125.57,125.56,0.06009447]
[1742339834500,19.11714716,125.57,125.56,0.06009447]
[1742339835602,49.95714716,125.57,125.56,0.06009447]
[1742339836695,49.95714716,125.57,125.56,9.447e-05]
[1742339837701,7.9683,125.52,125.5,4.1048]
[1742339837903,38.7683,125.52,125.5,2.1068]
[1742339838101,38.7683,125.52,125.49,273.89204716]
[1742339838798,38.82393128,125.52,125.49,273.9432]
[1742339838999,38.82393128,125.52,125.49,262.79115284]
[1742339839199,38.82393128,125.52,125.49,0.05115284]
[1742339839200,7.9689,125.51,125.49,0.05115284]
[1742339840202,30.85563128,125.52,125.49,0.05115284]
[1742339840601,30.85563128,125.52,125.49,8.02125284]
[1742339840911,30.85563128,125.52,125.49,0.05115284]
[1742339842004,7.9693,125.51,125.49,0.05115284]
[1742339842207,30.85563128,125.52,125.49,0.05115284]
[1742339842612,7.9689,125.51,125.49,0.05115284]
[1742339843304,7.9695,125.5,125.49,0.05115284]
[1742339843914,7.9691,125.51,125.49,0.05115284]
[1742339844112,30.85563128,125.52,125.49,0.05115284]
[1742339844509,38.82413128,125.52,125.49,0.05115284]
[1742339844714,30.85563128,125.52,125.49,0.05115284]
[1742339845117,7.9689,125.51,125.49,0.05115284]
[1742339845715,38.82403128,125.52,125.49,0.05115284]
[1742339846113,30.85563128,125.52,125.49,0.05115284]
[1742339846514,0.05563128,125.52,125.49,0.05115284]
[1742339846717,30.68,125.51,125.49,0.05115284]
[1742339847221,30.68,125.51,125.49,8.02105284]
[1742339848119,0.05563128,125.52,125.49,0.05115284]
[1742339848315,0.05563128,125.52,125.49,2.13785284]
[1742339848624,0.05563128,125.52,125.5,7.9691]
[1742339851417,0.05563128,125.52,125.49,10.10765284]
[1742339852222,0.05563128,125.52,125.5,7.9693]
[1742339853123,8.02393128,125.52,125.49,10.10775284]
[1742339853323,0.05563128,125.52,125.49,2.13785284]
[1742339853917,0.05563128,125.52,125.49,0.05115284]
[1742339854317,7.9689,125.51,125.49,0.05115284]
[1742339854525,30.62,125.5,125.49,0.05115284]
[1742339854926,38.5895,125.5,125.49,0.05115284]
[1742339855132,30.62,125.5,125.49,0.05115284]
[1742339855622,38.5895,125.5,125.49,0.05115284]
[1742339855827,30.62,125.5,125.49,0.05115284]
[1742339856218,30.62,125.5,125.49,8.02125284]
[1742339856425,30.61563128,125.52,125.49,0.05115284]
[1742339856621,0.05563128,125.52,125.49,0.05115284]
[1742339856821,0.05563128,125.52,125.5,7.9691]
[1742339857219,0.05563128,125.52,125.49,0.05115284]
[1742339858131,7.9695,125.5,125.49,0.05115284]
[1742339858420,38.4895,125.5,125.49,0.05115284]
[1742339859223,30.52,125.5,125.49,0.05115284]
[1742339860030,38.4895,125.5,125.49,0.05115284]
[1742339864329,7.9695,125.5,125.49,0.05115284]
[1742339864628,38.3895,125.5,125.49,0.05115284]
[1742339865532,38.3495,125.5,125.49,0.05115284]
[1742339866827,49.52369872,125.5,125.49,0.05115284]
[1742339871225,38.3495,125.5,125.49,0.05115284]
[1742339871833,30.38,125.5,125.49,0.05115284]
[1742339872825,38.3495,125.5,125.49,0.05115284]
[1742339877029,7.9695,125.5,125.49,0.05115284]
[1742339877230,38.0895,125.5,125.49,0.05115284]
[1742339877939,49.26369872,125.5,125.49,0.05115284]
[1742339878130,49.26369872,125.5,125.49,5.284e-05]
[1742339886739,7.9728,125.45,125.42,274.15419872]
[1742339887136,7.9728,125.45,125.42,11.17419872]
[1742339887842,29.94,125.46,125.42,11.17419872]
[1742339888039,0.06125905,125.45,125.42,11.22628901]
[1742339889636,8.03405905,125.45,125.42,0.05209029]
[1742339889842,19.20825777,125.45,125.42,0.05209029]
[1742339890046,11.23545777,125.45,125.42,0.05209029]
[1742339890238,0.06125905,125.45,125.42,8.02639029]
[1742339890635,0.06125905,125.45,125.43,11.17419872]
[1742339891038,0.06125905,125.45,125.42,0.05209029]
[1742339891039,0.06125905,125.45,125.44,19.14749872]
[1742339893347,0.06125905,125.45,125.44,7.9733]
[1742339893649,0.06125905,125.45,125.43,21.17969872]
[1742339894050,0.06125905,125.45,125.43,13.20599872]
[1742339894242,0.06125905,125.45,125.42,0.05209029]
[1742339894644,8.03445905,125.45,125.42,0.05209029]
[1742339896849,7.9734,125.44,125.42,0.05209029]
[1742339897041,29.76,125.44,125.42,0.05209029]
[1742339897945,7.974,125.43,125.42,0.05209029]
[1742339899449,37.7336,125.44,125.42,0.05209029]
[1742339899645,29.76,125.44,125.42,0.05209029]
[1742339900152,7.974,125.43,125.42,0.05209029]
[1742339902162,7.9759,125.4,125.38,11.17419872]
[1742339902360,29.7,125.41,125.38,11.17419872]
[1742339902559,29.7,125.41,125.36,9.9589]
[1742339902858,7.9762,125.4,125.37,11.17419872]
[1742339903255,8.02694403,125.4,125.37,11.23165373]
[1742339903456,7.9766,125.39,125.37,11.23165373]
[1742339903855,0.05074403,125.4,125.37,11.23165373]
[1742339905348,0.05074403,125.4,125.39,19.15069872]
[1742339907563,29.68,125.43,125.4,7.9755]
[1742339907967,29.68,125.43,125.41,7.9751]
[1742339908357,11.17419872,125.45,125.41,7.9751]
[1742339908559,0.0572941,125.43,125.41,19.20054278]
[1742339908867,0.0572941,125.43,125.42,7.9746]
[1742339909270,29.7,125.45,125.41,11.22544278]
[1742339909465,29.7,125.45,125.43,11.17419872]
[1742339910072,29.7,125.45,125.43,19.14779872]
[1742339910570,29.76001206,125.45,125.41,11.22544278]
[1742339910767,40.93421078,125.45,125.41,0.05124406]
[1742339911268,11.17419872,125.43,125.41,0.05124406]
[1742339911464,29.66,125.42,125.41,0.05124406]
[1742339911862,48.80879872,125.42,125.41,0.05124406]
[1742339912466,37.6346,125.42,125.41,0.05124406]
[1742339913764,48.80879872,125.42,125.41,0.05124406]
[1742339915271,37.6346,125.42,125.41,0.05124406]
[1742339915967,29.66,125.42,125.41,0.05124406]
[1742339917368,37.6346,125.42,125.41,0.05124406]
[1742339918065,29.66,125.42,125.41,0.05124406]
[1742339919069,37.6346,125.42,125.41,0.05124406]
[1742339919675,7.9765,125.4,125.35,13.35609872]
[1742339919875,29.6,125.39,125.35,13.35609872]
[1742339920878,0.05239968,125.38,125.36,0.05535469]
[1742339922075,0.05239968,125.38,125.36,8.03355469]
[1742339922271,0.05239968,125.38,125.36,0.05535469]
[1742339923567,0.05239968,125.38,125.36,11.22955341]
[1742339924075,0.05239968,125.38,125.37,7.9778]
[1742339924275,29.6,125.39,125.36,11.22955341]
[1742339924670,37.5157,125.41,125.38,7.9771]
[1742339925371,37.57669177,125.41,125.38,8.03476068]
[1742339926180,7.9763,125.4,125.38,0.05766068]
[1742339926975,7.9765,125.39,125.38,0.05766068]
[1742339927176,29.60099177,125.41,125.38,0.05766068]
[1742339927370,7.9762,125.4,125.38,0.05766068]
[1742339928074,7.9762,125.4,125.38,8.03466068]
[1742339928978,7.9762,125.4,125.38,0.05766068]
[1742339929778,7.9765,125.39,125.38,0.05766068]
[1742339933188,7.9788,125.36,125.32,21.20119872]
[1742339933485,37.4188,125.36,125.32,21.20119872]
[1742339934083,37.4188,125.36,125.33,7.9801]
[1742339934284,0.05327007,125.35,125.33,0.05031367]
[1742339934789,0.05327007,125.35,125.33,11.22451239]
[1742339935893,0.05327007,125.35,125.34,7.9796]
[1742339937893,0.05327007,125.35,125.34,19.15379872]
[1742339946492,0.05327007,125.35,125.34,7.9796]
[1742339947194,0.05327007,125.35,125.33,8.03031367]
[1742339947383,0.05327007,125.35,125.33,0.05031367]
[1742339948090,0.05327007,125.35,125.34,7.9797]
[1742339950995,0.05327007,125.35,125.33,19.20451239]
[1742339951200,0.05327007,125.35,125.33,8.03031367]
[1742339954198,8.03237007,125.35,125.33,8.03031367]
[1742339955799,0.05327007,125.35,125.33,8.03031367]
[1742339957007,0.05327007,125.35,125.33,19.20451239]
[1742339957207,8.03237007,125.35,125.33,19.20451239]
[1742339957409,8.03237007,125.35,125.33,11.22451239]
[1742339958307,8.03237007,125.35,125.33,19.20481239]
[1742339958308,0.05327007,125.35,125.33,19.20481239]
[1742339961914,0.05327007,125.35,125.33,0.05031367]
[1742339962509,7.9797,125.34,125.33,0.05031367]
[1742339964817,19.15389872,125.34,125.33,0.05031367]
[1742339967219,11.17419872,125.34,125.26,276.50479872]
[1742339967413,11.17419872,125.31,125.26,276.50479872]
[1742339967716,37.1623,125.3,125.27,7.9838]
[1742339967919,37.1623,125.3,125.26,276.50479872]
[1742339968114,48.33649872,125.3,125.26,265.3306]
[1742339968315,8.04403276,125.29,125.27,0.05636094]
[1742339968813,19.21823148,125.29,125.27,0.05636094]
[1742339969505,7.9835,125.28,125.27,0.05636094]
[1742339969817,19.15769872,125.28,125.27,0.05636094]
[1742339970114,0.06113276,125.29,125.27,0.05636094]
[1742339970115,19.21853148,125.29,125.27,0.05636094]
[1742339970319,11.23533148,125.29,125.27,0.05636094]
[1742339971822,19.21853148,125.29,125.27,0.05636094]
[1742339972211,11.23533148,125.29,125.27,0.05636094]
[1742339972411,19.15769872,125.28,125.27,0.05636094]
[1742339974228,7.986,125.25,125.21,19.16189872]
[1742339974426,29.22,125.24,125.21,19.16189872]
[1742339974624,37.2061,125.24,125.21,7.9877]
[1742339975123,7.9872,125.23,125.19,11.17419872]
[1742339975328,7.9872,125.23,125.21,0.05807003]
[1742339976027,37.25731091,125.24,125.21,8.04567003]
[1742339976228,29.27101091,125.24,125.21,8.04567003]
[1742339977233,29.27101091,125.24,125.22,11.17419872]
[1742339977427,29.27101091,125.24,125.23,11.17419872]
[1742339978331,29.27101091,125.24,125.23,19.16089872]